bitfinex/quotes_ETHUSD_20230109
["timestamp","ask_amount","ask_price","bid_price","bid_amount"]
[1673271837844,0.066,1325.5,1325.4,39.20168236]
[1673271838158,0.066,1325.5,1325.4,39.76843393]
[1673271838328,0.066,1325.5,1325.4,37.18537369]
[1673271839396,0.066,1325.5,1325.4,42.76512881]
[1673271839608,1.740801,1325.8,1325.5,4.033]
[1673271839821,1.740801,1325.8,1325.6,35.67066064]
[1673271840173,1.740801,1325.8,1325.7,26.42720064]
[1673271840476,1.740801,1325.8,1325.7,26.52320064]
[1673271843321,1.740801,1325.8,1325.7,28.23120064]
[1673271845366,0.066,1326.0,1325.7,28.23120064]
[1673271845367,0.066,1326.0,1325.7,33.81049787]
[1673271845586,43.3958,1326.2,1325.9,36.76764064]
[1673271845587,0.002,1326.2,1325.9,36.76764064]
[1673271845926,0.062,1326.3,1325.9,36.76764064]
[1673271845927,0.740801,1326.5,1326.1,3.79766064]
[1673271846141,0.740801,1326.5,1326.2,30.16136]
[1673271846359,0.740801,1326.5,1326.2,30.25736]
[1673271846571,0.740801,1326.5,1326.3,3.79766064]
[1673271846902,0.740801,1326.5,1326.2,0.096]
[1673271846903,2.2287,1326.4,1326.2,0.096]
[1673271847231,4.0,1326.3,1325.9,7.54203]
[1673271847385,24.85568911,1326.4,1326.2,18.87817064]
[1673271847386,0.76948911,1326.4,1326.2,18.87817064]
[1673271847585,0.590801,1326.5,1326.3,3.79766064]
[1673271847963,0.590801,1326.5,1326.2,0.096]
[1673271847964,1.705,1326.4,1326.2,0.096]
[1673271848116,2.5002801,1326.4,1326.2,3.79766064]
[1673271850447,10.0396401,1326.4,1326.1,0.096]
[1673271850653,0.68900001,1326.3,1325.9,8.3973]
[1673271850880,2.39400001,1326.3,1326.0,3.79766064]
[1673271851282,6.39400001,1326.3,1326.0,3.79766064]
[1673271851494,6.39800001,1326.3,1326.0,3.79766064]
[1673271851703,0.69300001,1326.3,1326.0,3.79766064]
[1673271851913,0.69300001,1326.3,1326.1,3.79766064]
[1673271851914,0.68900001,1326.3,1326.1,3.79766064]
[1673271852162,0.68900001,1326.3,1326.1,11.33837064]
[1673271852341,0.68900001,1326.3,1326.1,18.97540064]
[1673271852550,0.68900001,1326.3,1326.1,26.51630064]
[1673271855492,0.68900001,1326.3,1326.1,3.89366064]
[1673271855697,0.68900001,1326.3,1326.1,3.79766064]
[1673271856158,15.76858001,1326.3,1326.1,3.79766064]
[1673271856492,8.23279001,1326.3,1326.0,0.096]
[1673271856691,8.23279001,1326.3,1326.0,3.79766064]
[1673271856863,17.48656001,1326.3,1325.9,35.096]
[1673271857076,4.5658,1326.2,1325.9,38.89366064]
[1673271857392,4.5658,1326.2,1325.9,46.43570064]
[1673271858054,4.5658,1326.2,1325.9,38.89366064]
[1673271858055,12.1062,1326.2,1325.9,38.89366064]
[1673271858264,12.1102,1326.2,1325.9,38.89366064]
[1673271858794,1.703,1326.1,1325.9,38.89366064]
[1673271859173,24.32604,1326.1,1325.9,38.89366064]
[1673271859390,24.33004,1326.1,1325.9,38.89366064]
[1673271859629,9.2479,1326.1,1325.9,35.096]
[1673271860260,16.78881,1326.1,1325.9,35.096]
[1673271860468,10.95947,1326.0,1325.9,0.096]
[1673271860637,26.61231,1326.0,1325.6,21.6692]
[1673271860842,7.54261,1325.8,1325.7,3.79766064]
[1673271861071,0.004,1325.8,1325.7,3.79766064]
[1673271861262,15.08522,1325.8,1325.7,3.79766064]
[1673271861473,7.54661,1325.8,1325.6,35.096]
[1673271861730,9.25361,1325.8,1325.6,38.89366064]
[1673271861891,9.25361,1325.8,1325.6,35.096]
[1673271863469,1.711,1325.8,1325.6,35.096]
[1673271863676,1.709,1325.8,1325.6,35.096]
[1673271864044,16.7923,1325.8,1325.6,35.096]
[1673271864204,1.706,1325.7,1325.6,35.096]
[1673271864566,1.706,1325.7,1325.6,0.096]
[1673271864567,24.33554,1325.7,1325.6,0.096]
[1673271864733,28.90554,1325.7,1325.5,0.066]
[1673271864939,1.707,1325.6,1325.5,0.066]
[1673271865161,26.05025,1325.6,1325.5,0.066]
[1673271865376,26.05425,1325.6,1325.5,0.066]
[1673271866947,26.05425,1325.6,1325.5,0.06263444]
[1673271867384,16.8035,1325.6,1325.5,0.06263444]
[1673271868102,24.34725,1325.6,1325.5,0.06263444]
[1673271868931,31.76925,1325.6,1325.5,0.06263444]
[1673271869141,35.33535,1325.6,1325.5,0.06263444]
[1673271869716,35.33535,1325.6,1325.1,36.99007125]
[1673271869717,44.76492247,1325.6,1325.1,36.99007125]
[1673271869941,1.703,1325.2,1325.1,36.99007125]
[1673271870247,23.2171627,1325.2,1325.1,36.99007125]
[1673271870404,23.2211627,1325.2,1325.1,1.99007125]
[1673271870613,20.3871327,1325.2,1325.1,1.89407125]
[1673271870871,20.9534327,1325.2,1325.1,1.89407125]
[1673271871247,28.4994627,1325.2,1325.1,1.89407125]
[1673271873934,32.4994627,1325.2,1325.1,1.89407125]
[1673271874462,5.8613727,1325.2,1325.1,1.89407125]
[1673271874626,2.8613727,1325.2,1325.1,1.89407125]
[1673271874843,10.4034027,1325.2,1325.1,1.89407125]
[1673271875086,25.4994627,1325.2,1325.1,1.89407125]
[1673271876953,17.9534327,1325.2,1325.1,1.89407125]
[1673271877167,25.4994627,1325.2,1325.1,1.89407125]
[1673271877516,17.9534327,1325.2,1325.1,1.89407125]
[1673271878041,25.49612292,1325.2,1325.1,1.89407125]
[1673271878360,36.37576804,1325.2,1325.1,1.89407125]
[1673271878512,39.3801491,1325.2,1325.1,1.89407125]
[1673271879040,39.3801491,1325.2,1324.9,0.0184881]
[1673271879041,14.384,1325.1,1324.9,0.0184881]
[1673271879286,26.09798373,1325.0,1324.8,0.0184881]
[1673271879480,39.11258064,1324.9,1324.8,0.0184881]
[1673271879701,48.04161372,1324.9,1324.8,0.0184881]
[1673271879915,48.04161372,1324.9,1324.8,8.1e-06]
[1673271880230,48.27161372,1324.9,1324.8,8.1e-06]
[1673271880847,42.91298064,1324.9,1324.8,8.1e-06]
[1673271881054,56.22519175,1324.9,1324.8,8.1e-06]
[1673271881301,56.22519175,1324.9,1324.5,0.18324061]
[1673271881302,60.76019175,1324.9,1324.5,0.18324061]
[1673271881613,26.06432,1324.6,1324.5,0.18324061]
[1673271881825,29.44998064,1324.6,1324.5,0.18324061]
[1673271882039,30.01648064,1324.6,1324.5,0.18324061]
[1673271882854,34.01648064,1324.6,1324.5,0.18324061]
[1673271883247,38.09148064,1324.6,1324.5,0.18324061]
[1673271883878,57.54546587,1324.6,1324.1,0.02631854]
[1673271884097,20.34264587,1324.5,1324.1,0.02631854]
[1673271884330,2.724,1324.3,1324.1,0.02631854]
[1673271884523,28.37745,1324.3,1324.1,0.02631854]
[1673271884713,32.17711064,1324.3,1324.1,0.02631854]
[1673271885388,37.76251597,1324.3,1324.1,0.02631854]
[1673271885725,33.76111064,1324.3,1324.1,0.02631854]
[1673271886034,6.542,1324.3,1324.1,0.02631854]
[1673271886207,3.18847619,1324.3,1324.1,0.02631854]
[1673271886405,2.186,1324.3,1324.1,0.02631854]
[1673271886617,17.2883,1324.3,1324.1,0.02631854]
[1673271886827,17.2903,1324.3,1324.1,0.02631854]
[1673271887899,24.84145,1324.3,1324.1,0.02631854]
[1673271888238,27.84145,1324.3,1324.1,0.02631854]
[1673271888453,33.00711064,1324.3,1324.1,0.02631854]
[1673271888608,29.20945,1324.3,1324.1,0.02631854]
[1673271888814,21.6583,1324.3,1324.1,0.02631854]
[1673271889247,14.10715,1324.3,1324.1,0.02631854]
[1673271889480,29.21145,1324.3,1324.1,0.02631854]
[1673271889692,29.20945,1324.3,1324.1,0.02631854]
[1673271890077,20.2903,1324.3,1324.1,0.02631854]
[1673271890507,27.84145,1324.3,1324.1,0.02631854]
[1673271890724,20.2903,1324.3,1324.1,0.02631854]
[1673271891160,27.84145,1324.3,1324.1,0.02631854]
[1673271891508,20.2903,1324.3,1324.1,0.02631854]
[1673271891894,12.73915,1324.3,1324.1,0.02631854]
[1673271892108,17.2903,1324.3,1324.1,0.02631854]
[1673271892331,2.188,1324.3,1324.1,15.12997854]
[1673271892496,2.186,1324.3,1324.2,7.5780459]
[1673271892706,2.186,1324.3,1324.2,4.40272834]
[1673271892960,2.186,1324.3,1324.2,26.0414859]
[1673271892961,1.1741498,1324.3,1324.2,26.0414859]
[1673271893285,1.1741498,1324.3,1324.2,16.5857659]
[1673271893596,1.1741498,1324.3,1324.2,24.1374859]
[1673271893967,1.2241498,1324.3,1324.2,24.1374859]
[1673271894329,1.1741498,1324.3,1324.2,24.1374859]
[1673271894522,1.1741498,1324.3,1324.2,27.76571434]
[1673271896582,1.1741498,1324.3,1324.2,5.11055434]
[1673271896795,1.1741498,1324.3,1324.2,0.1223259]
[1673271896949,1.1741498,1324.3,1324.2,0.0263259]
[1673271897415,1.1741498,1324.3,1324.2,7.5780459]
[1673271897735,1.1741498,1324.3,1324.2,15.2257659]
[1673271897901,1.1741498,1324.3,1324.2,7.6740459]
[1673271898113,1.1741498,1324.3,1324.2,15.2257659]
[1673271899209,1.1741498,1324.3,1324.2,7.6740459]
[1673271900272,0.06,1324.8,1324.4,2.82066064]
[1673271900492,10.0,1325.1,1324.7,3.79766064]
[1673271900493,0.006,1325.1,1324.7,3.79766064]
[1673271900787,3.327,1325.5,1325.0,30.18684]
[1673271900788,0.066,1325.5,1325.0,30.18684]
[1673271900976,0.066,1325.5,1325.1,3.79766064]
[1673271900977,0.78804034,1325.4,1325.1,3.79766064]
[1673271901170,4.066,1325.5,1325.3,1.211]
[1673271901530,4.066,1325.5,1325.2,5.24966064]
[1673271901531,0.081,1325.3,1325.2,5.24966064]
[1673271901839,0.081,1325.3,1325.2,23.10760242]
[1673271902025,0.081,1325.3,1325.2,15.56157242]
[1673271902203,0.131,1325.3,1325.2,15.56157242]
[1673271902411,0.081,1325.3,1325.2,15.56157242]
[1673271903516,1.744,1325.3,1325.2,0.096]
[1673271903726,1.744,1325.3,1325.1,1.9343]
[1673271903938,1.744,1325.3,1325.1,0.5663]
[1673271904308,1.744,1325.3,1325.0,0.5663]
[1673271904566,1.744,1325.3,1324.9,9.57796]
[1673271904884,1.744,1325.3,1324.9,16.27840264]
[1673271905263,1.744,1325.3,1324.9,23.82613264]
[1673271906346,1.744,1325.3,1324.9,31.37386264]
[1673271906562,3.501,1325.3,1324.9,31.37386264]
[1673271907356,3.501,1325.3,1324.9,30.80746264]
[1673271907725,3.501,1325.3,1324.9,27.90468064]
[1673271908525,11.04653,1325.3,1324.9,27.90468064]
[1673271908767,11.04653,1325.3,1324.9,20.35695064]
[1673271908933,18.59192,1325.3,1324.9,5.26166064]
[1673271909305,18.59192,1325.3,1324.9,12.80935064]
[1673271910465,18.59192,1325.3,1324.9,12.80932064]
[1673271910612,18.59192,1325.3,1324.9,20.35705064]
[1673271911466,18.59192,1325.3,1324.9,12.80932064]
[1673271912450,3.501,1325.3,1324.9,11.44132064]
[1673271912608,11.04646,1325.3,1324.9,3.89366064]
[1673271912818,22.63934,1325.2,1324.9,3.79766064]
[1673271913453,5.364,1325.1,1324.8,0.096]
[1673271913663,5.364,1325.1,1324.6,35.0]
[1673271913664,8.91516,1325.0,1324.6,7.64542]
[1673271913905,9.48146,1325.0,1324.6,11.44308064]
[1673271914232,9.48146,1325.0,1324.6,7.64534]
[1673271914407,1.9343,1325.0,1324.6,15.19478]
[1673271914625,4.9343,1325.0,1324.6,7.64534]
[1673271914967,8.91592,1324.9,1324.6,0.096]
[1673271915181,1.368,1324.9,1324.5,3.99749969]
[1673271915345,0.5664,1324.8,1324.5,3.99749969]
[1673271915549,0.5664,1324.8,1324.5,11.54747969]
[1673271915766,5.368,1324.9,1324.6,4.0]
[1673271915767,0.066,1324.9,1324.6,4.0]
[1673271915982,6.39,1325.0,1324.5,24.35915033]
[1673271916196,6.39,1325.0,1324.5,36.30560903]
[1673271916402,4.0,1324.9,1324.5,4.09349969]
[1673271916614,0.04935,1324.9,1324.6,3.79766064]
[1673271916860,7.824,1325.0,1324.7,15.09756]
[1673271916861,3.04935,1325.0,1324.7,15.09756]
[1673271917077,3.04935,1325.0,1324.7,15.19356]
[1673271917654,25.69103,1325.0,1324.7,0.096]
[1673271917859,30.85669064,1325.0,1324.5,4.56409969]
[1673271918224,30.85669064,1325.0,1324.5,3.99749969]
[1673271918605,30.85669064,1325.0,1324.5,26.64726969]
[1673271918606,3.04935,1325.0,1324.5,26.64726969]
[1673271918810,3.4,1324.8,1324.5,19.19325969]
[1673271919065,3.4,1324.8,1324.5,11.64324969]
[1673271919767,3.4,1324.8,1324.5,4.09349969]
[1673271919980,10.94838,1324.8,1324.5,3.99749969]
[1673271920190,18.49676,1324.8,1324.5,3.99749969]
[1673271921280,26.04514,1324.8,1324.5,3.99749969]
[1673271921591,30.04514,1324.8,1324.5,3.99749969]
[1673271922696,14.94838,1324.8,1324.5,19.09736969]
[1673271922919,10.94838,1324.8,1324.5,11.64335969]
[1673271923156,3.4,1324.8,1324.5,19.19336969]
[1673271923380,10.94845,1324.8,1324.5,11.64335969]
[1673271923713,18.4969,1324.8,1324.5,4.09349969]
[1673271924011,22.64832,1324.6,1324.5,3.99749969]
[1673271924377,24.01632,1324.6,1324.5,3.99749969]
[1673271925052,22.64832,1324.6,1324.5,3.99749969]
[1673271925728,24.01232,1324.6,1324.5,3.99749969]
[1673271926036,25.38032,1324.6,1324.5,3.99749969]
[1673271927264,33.91872742,1324.6,1324.5,3.99749969]
[1673271927714,28.38032,1324.6,1324.5,3.99749969]
[1673271927877,32.17798064,1324.6,1324.5,3.99749969]
[1673271928088,32.17798064,1324.6,1324.5,9.69e-06]
[1673271928089,41.76687806,1324.6,1324.5,9.69e-06]
[1673271929146,43.13487806,1324.6,1324.5,9.69e-06]
[1673271929354,44.18747064,1324.6,1324.5,9.69e-06]
[1673271930514,49.73813026,1324.6,1324.5,9.69e-06]
[1673271931660,44.18747064,1324.6,1324.5,9.69e-06]
[1673271932394,49.73813026,1324.6,1324.5,9.69e-06]
[1673271933175,63.71482289,1324.6,1324.5,9.69e-06]
[1673271934858,63.71482289,1324.6,1324.1,0.02631854]
[1673271934859,77.08120375,1324.6,1324.1,0.02631854]
[1673271935073,2.81650602,1324.4,1324.2,0.077]
[1673271935387,22.89951064,1324.4,1324.1,0.00267854]
[1673271935601,3.0,1324.3,1324.1,0.00267854]
[1673271935753,10.55121,1324.3,1324.1,0.00267854]
[1673271935969,10.55521,1324.3,1324.1,0.00267854]
[1673271936177,22.10642,1324.3,1324.1,0.00267854]
[1673271936388,34.82329064,1324.3,1324.1,0.00267854]
[1673271936854,3.79766064,1324.2,1324.1,0.00267854]
[1673271937066,29.17882064,1324.2,1324.1,0.00267854]
[1673271937286,36.18282064,1324.2,1324.1,0.00267854]
[1673271937590,36.26820064,1324.2,1324.1,0.00267854]
[1673271938220,30.90020064,1324.2,1324.1,0.00267854]
[1673271938385,25.74454,1324.2,1324.1,0.00267854]
[1673271938912,10.55572,1324.2,1324.1,0.00267854]
[1673271939168,0.004,1324.2,1324.1,1.66567854]
[1673271939385,0.004,1324.3,1324.1,1.66567854]
[1673271939548,7.55127,1324.3,1324.1,0.00267854]
[1673271939758,7.55527,1324.3,1324.1,0.00267854]
[1673271940177,15.10654,1324.3,1324.1,0.00267854]
[1673271940660,7.55527,1324.3,1324.1,0.00267854]
[1673271940861,15.10654,1324.3,1324.1,0.00267854]
[1673271941209,22.65781,1324.3,1324.1,0.00267854]
[1673271943808,26.65516,1324.2,1324.1,0.00267854]
[1673271944016,26.65916,1324.2,1324.1,0.00267854]
[1673271945719,7.55572,1324.2,1324.1,0.00267854]
[1673271945917,15.10744,1324.2,1324.1,0.00267854]
[1673271946133,25.65916,1324.2,1324.1,0.00267854]
[1673271946349,30.82482064,1324.2,1324.1,0.00267854]
[1673271947117,34.82482064,1324.2,1324.1,0.00267854]
[1673271948168,36.27472064,1324.2,1324.1,0.00267854]
[1673271949385,36.27472064,1324.2,1323.9,0.76122898]
[1673271949597,2.736,1324.0,1323.9,0.76122898]
[1673271949866,45.2598797,1324.0,1323.9,8.98e-06]
[1673271950065,4.0,1323.9,1323.8,0.02043404]
[1673271950382,34.82598064,1323.9,1323.8,0.02043404]
[1673271950592,34.82998064,1323.9,1323.8,0.02043404]
[1673271950801,34.91630064,1323.9,1323.8,0.02043404]
[1673271951113,3.93118945,1323.9,1323.8,0.02043404]
[1673271951328,3.84086945,1323.9,1323.8,0.02043404]
[1673271952234,3.0,1323.9,1323.8,0.02043404]
[1673271952595,24.0934,1324.0,1323.8,0.02043404]
[1673271952920,24.0314,1324.0,1323.8,0.02043404]
[1673271954360,27.82906064,1324.0,1323.8,0.02043404]
[1673271955414,26.46106064,1324.0,1323.8,0.02043404]
[1673271956674,4.0,1323.9,1323.8,0.02043404]
[1673271957000,26.66032,1323.9,1323.8,0.02043404]
[1673271957195,26.66432,1323.9,1323.8,0.02043404]
[1673271958467,30.46198064,1323.9,1323.8,0.02043404]
[1673271958957,33.46198064,1323.9,1323.8,0.02043404]
[1673271959154,25.90854064,1323.9,1323.8,0.02043404]
[1673271959618,18.11088,1323.9,1323.8,0.02043404]
[1673271959952,25.66432,1323.9,1323.8,0.02043404]
[1673271960157,18.11088,1323.9,1323.8,0.02043404]
[1673271960474,25.66432,1323.9,1323.8,0.02043404]
[1673271961214,25.66432,1323.9,1323.6,0.5669]
[1673271962042,25.66432,1323.9,1323.5,8.21967]
[1673271962446,25.66432,1323.9,1323.5,0.664]
[1673271962662,25.66432,1323.9,1323.5,0.567]
[1673271964836,4.0,1323.8,1323.4,2.04042798]
[1673271965095,4.0,1323.8,1323.4,0.58742798]
[1673271965258,22.66397,1323.7,1323.4,0.02042798]
[1673271965469,21.54268162,1323.7,1323.4,7.57669798]
[1673271965839,21.54268162,1323.7,1323.4,0.11742798]
[1673271966005,21.54268162,1323.7,1323.4,0.02042798]
[1673271966568,30.83619262,1323.7,1323.4,0.02042798]
[1673271966822,5.16566064,1323.6,1323.4,0.02042798]
[1673271966940,9.16966064,1323.6,1323.4,0.02042798]
[1673271967152,24.28040064,1323.6,1323.4,0.02042798]
[1673271967355,31.83594064,1323.6,1323.4,0.02042798]
[1673271968213,26.66716,1323.5,1323.4,0.02042798]
[1673271968424,26.67116,1323.5,1323.4,0.02042798]
[1673271970865,31.03916,1323.5,1323.4,0.02042798]
[1673271971248,31.03916,1323.5,1323.1,0.078]
[1673271971249,64.30702414,1323.5,1323.1,0.078]
[1673271971461,64.30702414,1323.5,1322.7,0.19434353]
[1673271971462,3.79766064,1323.2,1322.7,0.19434353]
[1673271971671,7.55814,1323.1,1322.7,15.21878353]
[1673271971901,0.006,1323.1,1322.8,4.0]
[1673271972109,0.94200001,1323.0,1322.8,5.362]
[1673271972427,1e-08,1323.0,1322.9,2.721]
[1673271972631,0.45600001,1323.0,1322.9,10.28015]
[1673271972834,0.45600001,1323.0,1322.9,10.37615]
[1673271973188,0.45600001,1323.0,1322.9,11.13250718]
[1673271973559,0.45600001,1323.0,1322.9,18.69165718]
[1673271973922,0.45600001,1323.0,1322.9,26.75332741]
[1673271974135,0.45600001,1323.0,1322.9,19.19417741]
[1673271974335,0.45600001,1323.0,1322.9,15.19417741]
[1673271974528,0.45600001,1323.0,1322.9,11.13250718]
[1673271974718,0.45600001,1323.0,1322.9,0.096]
[1673271975083,0.45600001,1323.0,1322.7,0.09834353]
[1673271975084,8.01457001,1323.0,1322.7,0.09834353]
[1673271975401,15.57914001,1323.0,1322.7,0.09834353]
[1673271975584,19.37680065,1323.0,1322.7,0.09834353]
[1673271975922,15.11944,1322.8,1322.7,0.09834353]
[1673271976093,15.12544,1322.8,1322.7,0.09834353]
[1673271976289,18.92310064,1322.8,1322.7,0.09834353]
[1673271976501,27.84582064,1322.8,1322.7,0.09834353]
[1673271976711,36.29472374,1322.8,1322.7,0.09834353]
[1673271976955,40.29472374,1322.8,1322.7,0.09834353]
[1673271977183,49.61772374,1322.8,1322.7,0.09834353]
[1673271977346,55.25037688,1322.8,1322.7,0.09834353]
[1673271977805,16.49,1322.7,1322.4,0.04883374]
[1673271977975,21.71677674,1322.6,1322.4,0.04883374]
[1673271978180,3.79766064,1322.5,1322.4,0.04883374]
[1673271978408,21.38027378,1322.5,1322.4,0.04883374]
[1673271978623,24.38627378,1322.5,1322.4,0.04883374]
[1673271978831,5.46575314,1322.5,1322.4,0.04883374]
[1673271979140,3.5734,1322.5,1322.4,0.04883374]
[1673271979402,11.12883,1322.5,1322.4,0.04883374]
[1673271979554,18.69626,1322.5,1322.4,0.04883374]
[1673271979760,11.13483,1322.5,1322.4,0.04883374]
[1673271981047,25.69029,1322.5,1322.4,0.04883374]
[1673271981469,29.48795064,1322.5,1322.4,0.04883374]
[1673271981700,30.85195064,1322.5,1322.4,0.04883374]
[1673271982177,31.41935064,1322.5,1322.4,0.04883374]
[1673271982627,48.53459739,1322.5,1322.4,0.04883374]
[1673271982839,45.27735064,1322.5,1322.4,3.74e-06]
[1673271983804,32.78735064,1322.5,1322.4,3.74e-06]
[1673271983965,25.22592064,1322.5,1322.4,3.74e-06]
[1673271984172,32.78735064,1322.5,1322.4,3.74e-06]
[1673271988180,33.31749442,1322.5,1322.4,3.74e-06]
[1673271988337,31.95349442,1322.5,1322.4,3.74e-06]
[1673271988915,31.95349442,1322.5,1322.3,0.03790084]
[1673271988916,51.24061052,1322.5,1322.3,4.58e-06]
[1673271989072,28.00871228,1322.4,1322.2,0.03995759]
[1673271989283,35.41598064,1322.3,1322.2,0.03995759]
[1673271989513,38.95212442,1322.3,1322.2,0.03995759]
[1673271990649,38.95212442,1322.3,1322.1,0.0449098]
[1673271990855,22.02366064,1322.2,1322.1,0.0449098]
[1673271991069,45.28661064,1322.2,1322.1,0.0449098]
[1673271991326,4.9415,1322.2,1322.1,0.0449098]
[1673271991545,3.5675,1322.2,1322.1,0.0449098]
[1673271991757,3.0,1322.2,1322.1,0.0449098]
[1673271992436,7.09338249,1322.3,1322.1,0.0449098]
[1673271992644,7.03338249,1322.3,1322.2,4.0]
[1673271992909,10.03338249,1322.3,1322.2,4.0]
[1673271993077,10.03338249,1322.3,1322.1,0.1409098]
[1673271993291,10.03338249,1322.3,1322.1,0.0449098]
[1673271994432,17.59596249,1322.3,1322.1,0.0449098]
[1673271995008,36.51878313,1322.3,1322.1,0.0449098]
[1673271995765,1.368,1322.2,1322.1,0.0449098]
[1673271995921,24.05745,1322.2,1322.1,0.0449098]
[1673271996130,27.86111064,1322.2,1322.1,0.0449098]
[1673271999262,34.64958588,1322.2,1322.1,0.0449098]
[1673271999473,50.70708588,1322.2,1322.1,9.8e-06]
[1673271999724,22.20531064,1322.2,1322.1,9.8e-06]
[1673271999947,37.72346064,1322.2,1322.1,9.8e-06]
[1673272000107,45.28661064,1322.2,1322.1,9.8e-06]
[1673272002075,43.91861064,1322.2,1322.1,9.8e-06]
[1673272004787,35.96361064,1322.2,1322.1,9.8e-06]
[1673272006225,37.33161064,1322.2,1322.1,9.8e-06]
[1673272006432,42.7536251,1322.2,1322.1,9.8e-06]
[1673272006627,44.65247214,1322.2,1322.1,9.8e-06]
[1673272007944,10.266,1322.2,1322.1,9.8e-06]
[1673272008322,0.006,1322.2,1322.1,15.1274498]
[1673272008565,7.5563825,1322.3,1322.1,17.69249478]
[1673272008566,0.47500001,1322.3,1322.1,17.69249478]
[1673272008729,0.46900001,1322.3,1322.2,4.0]
[1673272008943,0.46900001,1322.3,1322.2,6.966]
[1673272009159,0.46900001,1322.3,1322.2,14.62515]
[1673272009368,0.46900001,1322.3,1322.2,3.062]
[1673272009626,2.13200001,1322.3,1322.2,0.23]
[1673272009928,2.34520001,1322.3,1322.2,0.23]
[1673272010355,0.68220001,1322.3,1322.2,0.23]
[1673272011355,8.24478001,1322.3,1322.2,0.23]
[1673272011565,18.81336001,1322.3,1322.2,0.23]
[1673272012088,18.81336001,1322.3,1322.1,9.8e-06]
[1673272012676,26.37594001,1322.3,1322.1,9.8e-06]
[1673272012984,30.17360065,1322.3,1322.1,9.8e-06]
[1673272013605,22.61102065,1322.3,1322.1,9.8e-06]
[1673272014612,7.48586065,1322.3,1322.1,7.5635898]
[1673272014822,7.48586065,1322.3,1322.1,0.0960098]
[1673272015167,3.68820001,1322.3,1322.1,7.5636198]
[1673272015383,0.68220001,1322.3,1322.1,24.1500598]
[1673272015708,0.68220001,1322.3,1322.1,1.4590098]
[1673272015928,8.24488001,1322.3,1322.1,1.3630098]
[1673272016098,8.25088001,1322.3,1322.1,1.3630098]
[1673272017082,0.47500001,1322.3,1322.1,16.4903798]
[1673272017391,0.46900001,1322.3,1322.2,1.893]
[1673272018658,0.46900001,1322.3,1322.2,0.23]
[1673272019875,0.46900001,1322.3,1322.2,1.893]
[1673272020323,0.46900001,1322.3,1322.2,9.45615]
[1673272020534,0.46900001,1322.3,1322.2,9.55215]
[1673272020941,0.46900001,1322.3,1322.2,9.32215]
[1673272021501,0.46900001,1322.3,1322.2,16.8853]
[1673272022612,0.46900001,1322.3,1322.2,9.32215]
[1673272023249,0.46900001,1322.3,1322.2,16.8853]
[1673272023474,0.46900001,1322.3,1322.2,24.44845]
[1673272024299,0.46900001,1322.3,1322.2,34.50593298]
[1673272024511,0.054,1322.5,1322.3,4.0]
[1673272024753,0.128,1322.5,1322.4,8.92584]
[1673272024964,0.128,1322.5,1322.4,18.18184]
[1673272025138,0.128,1322.5,1322.4,25.74384]
[1673272025341,0.128,1322.5,1322.4,18.18184]
[1673272025644,0.128,1322.5,1322.4,3.058]
[1673272025767,0.128,1322.5,1322.4,2.962]
[1673272026133,0.128,1322.5,1322.4,10.524]
[1673272026348,0.128,1322.5,1322.4,12.838227]
[1673272027202,19.04852064,1322.5,1322.4,0.096]
[1673272027397,31.67894392,1322.5,1322.2,0.096]
[1673272027574,5.06299328,1322.4,1322.1,15.2681098]
[1673272027919,2.24648726,1322.3,1322.1,15.2681098]
[1673272028134,9.80924726,1322.3,1322.1,1.4640098]
[1673272028293,7.56876,1322.3,1322.1,1.3680098]
[1673272028815,15.13152,1322.3,1322.2,0.23]
[1673272029023,17.37800726,1322.3,1322.2,0.23]
[1673272029444,20.19451328,1322.3,1322.2,0.23]
[1673272029654,30.7748535,1322.3,1322.1,9.8e-06]
[1673272029864,8.0865735,1322.3,1322.1,9.8e-06]
[1673272030390,2.27006748,1322.3,1322.1,8.9317298]
[1673272030596,2.26406748,1322.3,1322.1,24.1551698]
[1673272030862,5.7140735,1322.4,1322.2,24.05067]
[1673272031019,2.27006748,1322.4,1322.2,24.14667]
[1673272031230,5.0805735,1322.4,1322.3,18.37516]
[1673272031474,5.0865735,1322.4,1322.3,10.90858]
[1673272031664,2.27006748,1322.4,1322.3,10.90858]
[1673272031860,2.26406748,1322.4,1322.3,10.90858]
[1673272032069,3.01050602,1322.5,1322.3,14.90858]
[1673272032070,5.2745735,1322.5,1322.3,14.90858]
[1673272032444,5.2145735,1322.5,1322.3,22.47116]
[1673272032637,5.2145735,1322.5,1322.3,26.03374]
[1673272032802,5.2145735,1322.5,1322.3,18.47116]
[1673272033442,5.2145735,1322.5,1322.3,26.03374]
[1673272033647,2.26406748,1322.4,1322.3,18.47116]
[1673272033972,2.26406748,1322.4,1322.3,26.03374]
[1673272034167,5.0805735,1322.4,1322.3,26.03374]
[1673272034400,2.82250602,1322.4,1322.3,18.47116]
[1673272034608,2.82250602,1322.4,1322.3,0.096]
[1673272034609,6.34396337,1322.4,1322.3,0.096]
[1673272034853,6.91326458,1322.4,1322.2,0.096]
[1673272035024,2.83015638,1322.3,1322.1,15.2228798]
[1673272035219,2.26410027,1322.2,1322.1,22.7863898]
[1673272036521,2.26410027,1322.2,1322.1,7.6593498]
[1673272037057,2.78012594,1322.2,1322.1,7.6593498]
[1673272037370,2.78012594,1322.2,1322.1,15.4530698]
[1673272037561,2.78012594,1322.2,1322.1,23.0167898]
[1673272039552,5.61028232,1322.2,1322.1,23.0167898]
[1673272039785,2.78612594,1322.2,1322.1,23.0167898]
[1673272040100,2.78012594,1322.2,1322.1,15.2230698]
[1673272040319,3.34762594,1322.2,1322.1,22.7871698]
[1673272040473,2.78012594,1322.2,1322.1,22.7871698]
[1673272040685,2.78212594,1322.2,1322.1,22.7851698]
[1673272040927,2.78012594,1322.2,1322.1,22.7871698]
[1673272041242,2.78012594,1322.2,1322.1,15.2234498]
[1673272041784,2.78012594,1322.2,1322.1,22.7871698]
[1673272041996,2.78012594,1322.2,1322.1,15.2234498]
[1673272042396,2.78012594,1322.2,1322.1,7.6597298]
[1673272043049,9.40794296,1322.2,1322.1,0.0960098]
[1673272043223,14.71299269,1322.2,1322.1,9.8e-06]
[1673272043431,29.83929269,1322.2,1322.1,9.8e-06]
[1673272043653,22.44598631,1322.2,1322.1,9.8e-06]
[1673272043868,40.1358683,1322.2,1322.1,9.8e-06]
[1673272044207,53.744764,1322.2,1321.9,0.79413577]